bitfinex-derivatives/quotes_SOLF0:USTF0_20251219
["timestamp","ask_amount","ask_price","bid_price","bid_amount"]
[1766158166938,32.12,125.7,125.6,19.77]
[1766158167945,32.12,125.7,125.45,26.77975522]
[1766158167946,0.05412358,125.66,125.54,19.77]
[1766158168147,17.30333594,125.68,125.54,19.77]
[1766158168843,17.30333594,125.68,125.6,0.05474452]
[1766158168844,0.05648219,125.62,125.6,0.05474452]
[1766158169044,0.0560851,125.62,125.6,0.05190007]
[1766158169252,0.0560851,125.62,125.54,19.77]
[1766158169551,17.30333594,125.64,125.51,19.77]
[1766158170138,0.05869663,125.59,125.51,19.77]
[1766158170345,17.30333594,125.64,125.51,19.77]
[1766158171045,17.30333594,125.6,125.48,19.77]
[1766158171243,0.0567222,125.55,125.53,0.05899203]
[1766158171449,0.05630164,125.55,125.53,0.05899203]
[1766158172048,0.05630164,125.55,125.48,19.77]
[1766158172652,7.1724,125.54,125.48,19.77]
[1766158173059,0.06009882,125.52,125.5,0.02447959]
[1766158173255,0.05463502,125.52,125.5,0.02447959]
[1766158173456,128.83901169,125.59,125.5,19.79447959]
[1766158173651,128.83901169,125.59,125.5,19.77]
[1766158174046,17.30651169,125.59,125.5,19.77]
[1766158174251,111.5051,125.62,125.5,19.77]
[1766158174452,0.05791965,125.56,125.54,0.0587122]
[1766158174650,7.1691,125.6,125.54,0.0587122]
[1766158175250,111.5154,125.6,125.54,0.0587122]
[1766158175764,0.05797914,125.58,125.54,0.0587122]
[1766158175951,7.22817914,125.58,125.54,0.0587122]
[1766158176850,7.1691,125.6,125.54,20.8787122]
[1766158177351,111.497,125.63,125.54,20.8787122]
[1766158177551,111.497,125.63,125.54,20.82]
[1766158178063,0.05510065,125.6,125.57,0.05705111]
[1766158178248,111.4767,125.65,125.57,0.05705111]
[1766158178560,111.4767,125.65,125.55,20.82]
[1766158178769,7.1663,125.65,125.56,20.82]
[1766158179063,111.4503,125.68,125.56,20.82]
[1766158179250,0.05584929,125.63,125.61,0.05343484]
[1766158179450,0.05193576,125.63,125.61,0.05343484]
[1766158179657,0.00193576,125.63,125.61,0.05343484]
[1766158181358,46.8,125.69,125.61,20.87343484]
[1766158181558,46.8,125.69,125.61,20.82]
[1766158181759,111.4457,125.68,125.61,20.82]
[1766158182460,158.2379,125.69,125.63,0.05250991]
[1766158182461,0.00109539,125.66,125.63,0.05250991]
[1766158183858,0.00109539,125.66,125.63,20.87250991]
[1766158184278,0.00109539,125.66,125.63,0.05250991]
[1766158184764,0.00109539,125.66,125.63,20.87250991]
[1766158184966,111.4048,125.73,125.63,20.87250991]
[1766158185270,111.4048,125.73,125.63,20.82]
[1766158185465,111.4094,125.72,125.63,20.82]
[1766158185964,0.05149368,125.69,125.66,0.05588351]
[1766158187471,0.05149368,125.69,125.63,20.82]
[1766158187665,0.00149368,125.69,125.63,20.82]
[1766158187968,111.389,125.75,125.63,20.82]
[1766158188261,111.4097,125.72,125.64,20.82]
[1766158188660,7.1622,125.72,125.64,20.82]
[1766158188855,7.1622,125.72,125.67,0.05909695]
[1766158189056,122.01482961,125.75,125.67,20.87909695]
[1766158189257,122.01482961,125.75,125.67,20.82]
[1766158189458,111.4015,125.73,125.67,20.82]
[1766158189664,111.4015,125.73,125.64,20.82]
[1766158189866,0.05085775,125.7,125.67,0.05296823]
[1766158190059,0.05085775,125.7,125.64,20.82]
[1766158191170,0.05085775,125.7,125.66,0.05206325]
[1766158191371,111.4353,125.69,125.57,7.29898893]
[1766158191567,111.4465,125.68,125.56,7.29898893]
[1766158191869,7.1663,125.65,125.55,7.1713]
[1766158192055,7.1663,125.65,125.55,54.0913]
[1766158192454,7.1663,125.65,125.59,0.05210843]
[1766158192666,7.1667,125.64,125.59,0.05210843]
[1766158192971,7.1667,125.64,125.55,54.0913]
[1766158193467,7.1656,125.66,125.59,20.82]
[1766158193769,113.1265,125.68,125.59,20.82]
[1766158193770,111.4559,125.67,125.59,20.82]
[1766158194157,113.1265,125.68,125.59,20.82]
[1766158194363,111.4546,125.67,125.59,20.82]
[1766158194563,0.05038619,125.64,125.62,0.05256163]
[1766158195556,0.05038619,125.64,125.59,20.82]
[1766158196058,111.53338619,125.64,125.55,20.82]
[1766158196256,111.489,125.63,125.55,20.82]
[1766158196564,0.05287518,125.6,125.58,0.06119497]
[1766158197066,12.43582961,125.66,125.58,20.88119497]
[1766158197266,111.4743,125.65,125.58,20.82]
[1766158197464,170.71842961,125.69,125.58,20.82]
[1766158197661,7.1663,125.65,125.58,20.82]
[1766158198175,0.00150205,125.63,125.6,20.877593]
[1766158198363,170.71842961,125.69,125.6,20.82]
[1766158198860,7.1656,125.66,125.6,20.82]
[1766158199059,0.05248088,125.64,125.62,0.05659966]
[1766158199261,0.00248088,125.64,125.62,0.05659966]
[1766158199460,0.00248088,125.64,125.6,20.82]
[1766158200166,7.16918088,125.64,125.6,20.82]
[1766158200364,7.16918088,125.64,125.53,118.96069192]
[1766158200365,111.5178,125.6,125.53,20.82]
[1766158200569,0.05932751,125.58,125.55,0.05628665]
[1766158200875,111.5258,125.59,125.51,20.82]
[1766158201071,122.11622961,125.63,125.51,20.82]
[1766158201366,131.30262961,125.6,125.52,20.82]
[1766158201556,7.1701,125.58,125.52,20.82]
[1766158201861,0.05090097,125.56,125.54,0.05743282]
[1766158202271,0.05090097,125.56,125.48,20.82]
[1766158202466,131.30262961,125.6,125.49,20.82]
[1766158202667,111.5252,125.59,125.49,20.82]
[1766158202964,122.17222961,125.57,125.49,20.82]
[1766158203161,111.5565,125.56,125.46,20.82]
[1766158203480,46.78,125.59,125.43,20.82]
[1766158203481,122.22332961,125.51,125.43,20.82]
[1766158203659,111.613,125.49,125.4,20.82]
[1766158203860,111.6341,125.47,125.37,20.82]
[1766158204164,111.6689,125.43,125.34,19.57]
[1766158204476,0.05978763,125.4,125.37,0.05095069]
[1766158204670,0.05978763,125.4,125.34,19.57]
[1766158204975,111.75748763,125.4,125.34,19.57]
[1766158205159,111.7048,125.39,125.31,19.57]
[1766158205475,122.30462961,125.42,125.31,19.57]
[1766158205673,0.0045897,125.38,125.35,0.05283782]
[1766158205864,0.0045897,125.38,125.31,19.57]
[1766158206173,111.7046,125.39,125.31,19.57]
[1766158206470,129.48572961,125.42,125.31,19.57]
[1766158206777,111.7042,125.39,125.31,19.57]
[1766158207073,0.05848745,125.38,125.35,0.00108801]
[1766158207258,111.7333,125.36,125.27,46.94]
[1766158207460,111.7412,125.35,125.27,19.57]
[1766158207769,118.9245,125.35,125.27,19.57]
[1766158207973,122.34812961,125.37,125.27,19.57]
[1766158208167,0.00018748,125.33,125.31,0.05552263]
[1766158208569,0.00018748,125.33,125.27,19.57]
[1766158209071,0.00018748,125.33,125.18,19.57]
[1766158209072,111.7756,125.31,125.18,19.57]
[1766158209280,122.41292961,125.3,125.18,19.57]
[1766158209463,0.05892032,125.25,125.23,0.05793693]
[1766158209668,0.05460948,125.25,125.23,0.05793693]
[1766158209874,111.7954,125.29,125.23,0.05793693]
[1766158209875,111.7158,125.38,125.25,19.57]
[1766158210069,111.7225,125.37,125.26,19.57]
[1766158210369,111.7317,125.36,125.26,19.57]
[1766158210573,111.7408,125.35,125.26,19.57]
[1766158210873,0.05560577,125.32,125.29,0.05108325]
[1766158211873,46.82,125.36,125.29,0.05108325]
[1766158212871,0.05510333,125.34,125.29,0.05108325]
[1766158213773,121.26380333,125.34,125.21,19.12]
[1766158213983,9.46,125.31,125.21,19.12]
[1766158214168,46.86,125.32,125.21,19.12]
[1766158214481,158.6279,125.32,125.21,19.12]
[1766158214775,0.06028048,125.28,125.25,0.05755853]
[1766158214982,121.2509,125.37,125.25,19.17755853]
[1766158215173,9.54,125.32,125.21,19.12]
[1766158215372,121.3247,125.3,125.21,19.12]
[1766158215575,9.54,125.3,125.21,19.12]
[1766158216080,0.06095587,125.27,125.24,0.05495591]
[1766158216282,168.2366,125.32,125.24,0.06063921]
[1766158216579,128.5716,125.31,125.21,19.12]
[1766158216879,128.5699,125.31,125.21,19.12]
[1766158217076,121.4056,125.3,125.21,19.12]
[1766158217279,121.48164138,125.27,125.24,0.00243663]
[1766158217472,111.829,125.25,125.14,19.12]
[1766158217672,121.3907,125.26,125.14,19.12]
[1766158218177,132.02522961,125.25,125.14,19.12]
[1766158218477,9.52,125.2,125.11,24.48310711]
[1766158218681,56.4,125.2,125.11,5.36310711]
[1766158218977,168.2788,125.2,125.11,5.36310711]
[1766158219182,168.2788,125.2,125.11,7.11e-06]
[1766158219183,111.921,125.15,125.11,7.11e-06]
[1766158219373,132.05592961,125.16,125.04,19.12]
[1766158219374,9.52,125.14,125.04,19.12]
[1766158219686,158.7518,125.2,125.08,19.12]
[1766158219879,168.2118,125.2,125.08,19.12]
[1766158220068,119.1024,125.16,125.08,19.12]
[1766158220271,9.47,125.17,125.08,19.12]
[1766158220777,0.0037196,125.14,125.11,0.05852926]
[1766158221076,121.3642,125.24,125.12,19.12]
[1766158221272,165.9349,125.23,125.12,19.12]
[1766158221478,111.8559,125.22,125.12,19.12]
[1766158221678,9.55,125.16,125.05,132.4429]
[1766158221870,9.55,125.16,124.99,10.62582961]
[1766158221871,132.15012961,125.09,124.97,20.44]
[1766158222182,0.05925474,125.04,125.02,0.06128699]
[1766158222385,0.00280973,125.04,125.02,0.06128699]
[1766158222584,0.00280973,125.04,125.03,1.6]
[1766158223283,0.00280973,125.04,124.99,20.44]
[1766158223585,0.00280973,125.04,125.01,20.44]
[1766158223781,0.00280973,125.04,125.03,20.44]
[1766158223999,9.62,125.14,125.04,20.44]
[1766158224280,158.8301,125.16,125.05,20.44]
[1766158224480,111.9184,125.15,125.05,20.44]
[1766158224877,46.92,125.16,125.09,0.05745616]
[1766158225079,0.05410565,125.14,125.09,0.05745616]
[1766158225389,119.17710565,125.14,125.09,0.05745616]
[1766158225578,111.9563,125.11,125.01,20.44]
[1766158225775,121.5171,125.12,125.01,20.44]
[1766158225973,128.7137,125.12,125.01,20.44]
[1766158226280,132.15312961,125.11,125.01,20.44]
[1766158226487,0.05170767,125.07,125.05,0.00191778]
[1766158226692,0.05170767,125.07,124.98,20.44]
[1766158226982,112.0276,125.03,124.94,20.44]
[1766158227382,20.16582961,125.05,124.95,20.44]
[1766158227581,46.94,125.06,124.95,20.44]
[1766158227885,0.00490574,125.01,124.99,20.49778135]
[1766158228084,7.1963,125.12,124.98,112.066]
[1766158228085,111.9646,125.1,125.0,20.44]
[1766158228384,111.9646,125.1,124.96,112.0839]
[1766158228385,111.9811,125.08,124.96,20.44]
[1766158228684,10.62582961,125.11,124.99,20.44]
[1766158228893,111.9631,125.1,124.99,20.44]
[1766158229183,0.05507654,125.06,125.03,0.00036551]
[1766158230089,111.9059,125.17,125.04,20.44]
[1766158230277,111.9172,125.15,125.05,20.44]
[1766158230476,119.1241,125.14,125.05,20.44]
[1766158230779,119.1241,125.14,125.0,7.2027]
[1766158230780,116.5175,125.12,125.0,20.44]
[1766158231084,0.05096903,125.07,125.05,0.06010216]
[1766158231292,0.05730528,125.07,125.05,0.06010216]
[1766158231476,116.5526,125.16,125.05,22.10010216]
[1766158231681,111.9184,125.15,125.05,20.44]
[1766158231985,116.5584,125.15,125.05,20.44]
[1766158232186,4.64,125.15,125.05,20.44]
[1766158232391,4.65,125.12,125.01,20.44]
[1766158232775,0.05740087,125.08,125.05,0.05797894]
[1766158232980,116.6275,125.15,125.05,0.05797894]
[1766158233282,116.6275,125.15,125.04,20.44]
[1766158233283,4.71,125.15,125.04,20.44]
[1766158233788,4.71,125.15,125.05,20.44]
[1766158233975,7.1935,125.17,125.05,20.44]
[1766158234181,7.1935,125.17,125.09,0.05867364]
[1766158234391,119.0919,125.17,125.06,20.69]
[1766158234574,116.7575,125.15,125.03,67.79]
[1766158234778,10.62582961,125.17,125.05,20.69]
[1766158234985,111.9101,125.16,125.05,20.69]
[1766158235184,0.05196076,125.12,125.09,0.06076397]
[1766158235390,54.1529,125.18,125.09,0.05324608]
[1766158235585,54.1529,125.18,125.07,20.69]
[1766158235788,51.86,125.18,125.07,20.69]
[1766158235987,51.86,125.18,125.08,20.69]
[1766158236687,0.06097059,125.14,125.08,20.69]
[1766158237693,0.06097059,125.14,125.1,0.05425474]
[1766158237887,0.00097059,125.14,125.1,0.05425474]
[1766158238991,4.94,125.21,125.1,20.74425474]
[1766158239186,7.1908,125.22,125.12,20.69]
[1766158239385,10.62582961,125.19,125.07,20.69]
[1766158239689,7.1922,125.2,125.09,20.69]
[1766158239998,0.00217301,125.16,125.13,20.74315967]
[1766158240194,4.96,125.25,125.14,47.12]
[1766158240495,116.7897,125.25,125.15,20.69]
[1766158240889,7.1898,125.24,125.15,20.69]
[1766158241199,0.05596711,125.21,125.18,0.0611432]
[1766158241693,116.88976711,125.21,125.12,20.69]
[1766158241890,116.8338,125.21,125.12,20.69]
[1766158242093,111.8722,125.2,125.09,67.79]
[1766158242302,4.98,125.19,125.09,20.69]
[1766158242490,7.1932,125.18,125.09,20.69]
[1766158242689,0.05776437,125.15,125.13,0.05633524]
[1766158243496,228.801,125.2,125.13,0.05633524]
[1766158243793,5.05,125.2,125.13,0.05633524]
[1766158243994,111.8899,125.18,125.13,0.05633524]
[1766158244190,7.1937,125.17,125.09,20.69]
[1766158244583,111.8997,125.17,125.09,20.69]
[1766158244887,116.9317,125.19,125.09,20.69]
[1766158245196,0.05873197,125.15,125.13,0.05784044]
[1766158246080,0.05873197,125.15,125.06,67.79]
[1766158246392,7.1943,125.16,125.06,20.69]
[1766158246587,7.1949,125.15,125.06,20.69]
[1766158246794,111.9256,125.14,125.01,20.69]
[1766158247092,0.05306721,125.09,125.06,0.06075447]
[1766158247300,111.9167,125.15,125.06,0.05080684]
[1766158247505,111.9167,125.15,125.03,20.69]
[1766158247690,116.9389,125.16,125.03,20.69]
[1766158247691,12.2243,125.16,125.03,20.69]
[1766158248099,111.9181,125.15,125.04,20.69]
[1766158248303,0.06014119,125.11,125.08,0.05724405]
[1766158248896,0.06014119,125.11,125.04,20.69]
[1766158249095,7.25724119,125.11,125.04,20.69]
[1766158249292,117.13214119,125.11,125.01,20.69]
[1766158249494,117.072,125.11,125.01,20.69]
[1766158249695,124.2691,125.11,125.01,20.69]
[1766158249996,0.00238384,125.07,125.05,0.05611923]
[1766158250186,5.18,125.13,125.03,20.69]
[1766158250598,5.18,125.13,125.0,20.69]
[1766158250899,10.89080878,125.16,125.05,20.74632267]
[1766158251100,5.18,125.16,125.05,20.69]
[1766158251288,7.1961,125.13,125.05,20.69]
[1766158251491,111.9885,125.07,124.97,20.69]
[1766158251690,158.9685,125.07,124.97,20.69]
[1766158251901,0.05681858,125.03,125.01,0.06073946]
[1766158254310,123.04212852,125.11,125.01,20.75073946]
[1766158254499,64.39898589,125.1,125.01,20.69]
[1766158255400,0.05216355,125.07,125.04,0.05781818]
[1766158257596,7.25166355,125.07,125.04,0.05781818]
[1766158257895,0.05216355,125.07,125.04,0.05781818]
[1766158258604,0.00216355,125.07,125.04,0.05781818]
[1766158260100,0.00216355,125.07,124.98,20.69]
[1766158260401,123.14912852,125.1,124.98,20.69]
[1766158260604,111.9883,125.07,124.98,20.69]
[1766158260798,47.0,125.07,124.98,20.69]
[1766158260994,47.0,125.07,125.01,0.05696391]
[1766158260995,7.25386166,125.04,125.01,0.05696391]
[1766158261208,111.9972,125.06,124.95,20.69]
[1766158261209,112.006,125.05,124.95,20.69]
[1766158261415,159.006,125.05,124.95,20.69]
[1766158261706,129.41618589,125.06,124.95,20.69]
[1766158261707,52.35,125.06,124.95,20.69]
[1766158261908,47.0,125.06,124.95,20.69]
[1766158262095,47.0,125.07,124.99,0.05657705]
[1766158262295,117.4068,125.06,124.96,20.69]
[1766158262807,7.2006,125.05,124.96,20.69]
[1766158263108,5.41,125.06,124.96,20.69]
[1766158263302,0.00078539,125.02,124.99,0.06011764]
[1766158263502,0.00078539,125.02,124.96,20.69]
[1766158264208,0.00078539,125.02,124.98,0.05659866]
[1766158264408,0.00078539,125.02,124.98,19.91659866]
[1766158264809,7.1984,125.09,124.98,19.91659866]
[1766158265010,5.42,125.1,124.98,19.86]
[1766158265507,158.9163,125.15,125.01,19.86]
[1766158265713,0.00307104,125.09,125.07,0.05507677]
[1766158265901,158.9163,125.15,125.04,19.86]
[1766158266101,54.1948,125.15,125.04,19.86]
[1766158266308,5.57,125.2,125.06,19.86]
[1766158266707,7.1926,125.19,125.07,19.86]
[1766158266910,0.00164593,125.14,125.12,19.9150739]
[1766158267106,12.8097,125.24,125.13,19.86]
[1766158267310,117.4573,125.24,125.13,19.86]
[1766158267808,5.62,125.24,125.13,19.86]
[1766158268112,0.05030496,125.2,125.17,0.05172092]
[1766158269307,47.0,125.25,125.17,19.91172092]
[1766158269614,47.0,125.25,125.17,19.86]
[1766158270116,117.5362,125.24,125.13,19.86]
[1766158270303,117.5458,125.23,125.13,19.86]
[1766158270506,0.05670314,125.19,125.17,0.05075287]
[1766158270718,0.05670314,125.19,125.08,66.98]
[1766158270899,119.0564,125.21,125.09,19.86]
[1766158271214,124.7736,125.2,125.09,19.86]
[1766158271412,117.5995,125.18,125.09,19.86]
[1766158271713,0.06119208,125.15,125.12,0.05271456]
[1766158272012,0.00119208,125.15,125.12,0.05271456]
[1766158272212,5.71,125.21,125.12,19.91271456]
[1766158272400,5.71,125.21,125.12,19.86]
[1766158272597,117.6605,125.19,125.08,19.86]
[1766158272799,111.9349,125.13,125.03,19.86]
[1766158273200,46.98,125.14,125.07,0.05051639]
[1766158273410,5.78,125.15,125.07,0.05051639]
[1766158273602,5.78,125.15,125.03,19.86]
[1766158273804,7.193,125.18,125.06,19.86]
[1766158274007,164.7065,125.19,125.06,19.86]
[1766158274201,164.7065,125.19,125.07,19.86]
[1766158274402,5.85,125.22,125.11,19.91289505]
[1766158274615,117.7047,125.22,125.15,0.053939]
[1766158275100,119.0564,125.21,125.15,0.053939]
[1766158275310,111.93527561,125.19,125.06,19.86]
[1766158275509,111.8807,125.19,125.07,19.86]
[1766158275807,111.8946,125.18,125.07,19.86]
[1766158276418,0.06027788,125.14,125.11,0.05414572]
[1766158276918,5.87,125.22,125.11,19.91414572]
[1766158277107,5.87,125.22,125.11,19.86]
[1766158277702,7.1913,125.21,125.11,19.86]
[1766158278006,17.41898589,125.23,125.15,0.05354751]
[1766158278205,129.26378589,125.23,125.11,19.86]
[1766158278409,111.8539,125.22,125.11,19.86]
[1766158278817,117.6439,125.22,125.11,19.86]
[1766158279013,7.1915,125.21,125.11,19.86]
[1766158279211,0.05264576,125.17,125.15,0.0571099]
[1766158279417,0.06074752,125.17,125.15,0.0571099]
[1766158279713,0.00074752,125.17,125.15,0.0571099]
[1766158279916,0.00074752,125.17,125.11,19.86]
[1766158280220,0.00074752,125.17,125.06,19.92]
[1766158280420,46.98,125.19,125.07,19.92]
[1766158280610,46.98,125.19,125.08,19.92]
[1766158280810,30.41088589,125.2,125.08,19.92]
[1766158281010,0.05533513,125.15,125.13,0.05876258]
[1766158281312,0.05233122,125.15,125.13,0.05876258]
[1766158281516,5.8,125.2,125.13,0.05876258]
[1766158281714,46.98,125.23,125.13,19.97876258]
[1766158281920,5.87,125.24,125.15,27.1145]
[1766158282216,117.7339,125.22,125.11,19.92]
[1766158282608,117.7339,125.22,125.15,0.06085778]
[1766158282809,7.1915,125.21,125.15,0.06085778]
[1766158283309,5.88,125.22,125.15,0.06085778]
[1766158283620,5.88,125.25,125.15,0.06085778]
[1766158283822,5.88,125.25,125.19,0.05276157]
[1766158283823,46.98,125.25,125.19,0.05276157]
[1766158287521,7.1874,125.28,125.19,0.05276157]
[1766158287718,70.25898589,125.29,125.22,0.05641015]
[1766158288214,52.84,125.29,125.22,0.05641015]
[1766158288409,7.1873,125.28,125.22,0.05641015]
[1766158288614,5.88,125.29,125.22,0.05641015]
[1766158289017,46.96,125.3,125.22,0.05641015]
[1766158289018,5.92,125.28,125.22,0.05641015]
[1766158289317,5.92,125.28,125.19,19.92]
[1766158289821,5.92,125.28,125.17,111.8932]
[1766158289822,5.87,125.27,125.17,27.1132]
[1766158290321,0.00325181,125.23,125.21,0.05067303]
[1766158290524,17.41898589,125.32,125.21,19.97067303]
[1766158290816,24.60398589,125.32,125.22,7.1903]
[1766158291011,24.60398589,125.32,125.21,19.92]
[1766158291012,5.92,125.31,125.21,19.92]
[1766158291412,13.1056,125.31,125.21,19.92]
[1766158291612,0.02006022,125.27,125.25,0.05892257]
[1766158291822,0.02006022,125.27,125.21,19.92]
[1766158292319,0.02006022,125.27,125.21,27.1109]
[1766158292517,0.02006022,125.27,125.22,131.7707]
[1766158292827,5.9,125.34,125.26,7.1877]
[1766158293126,5.9,125.34,125.25,131.7429]
[1766158293319,5.9,125.34,125.25,19.92]
[1766158293509,5.9,125.34,125.26,7.1879]
[1766158293712,0.05394827,125.31,125.29,0.06057334]
[1766158294717,0.05394827,125.31,125.22,20.99]
[1766158294920,23.31898589,125.34,125.23,111.8445]
[1766158294921,5.86,125.33,125.23,111.8445]
[1766158295123,5.86,125.33,125.24,111.8349]
[1766158295326,5.86,125.33,125.26,7.1879]
[1766158295833,0.05810709,125.31,125.28,0.0531028]
[1766158296330,0.05810709,125.31,125.24,20.99]
[1766158297434,0.05810709,125.31,125.26,0.05782445]
[1766158297622,0.05810709,125.31,125.26,21.04782445]
[1766158299224,0.05810709,125.31,125.26,0.05782445]
[1766158301124,0.05810709,125.31,125.26,21.04782445]
[1766158301426,13.0235,125.35,125.26,21.04782445]
[1766158301628,111.7194,125.38,125.27,132.798]
[1766158301629,5.91,125.38,125.27,132.798]
[1766158301931,5.91,125.38,125.28,20.99]
[1766158302129,5.91,125.38,125.29,20.99]
[1766158302523,0.05209786,125.35,125.32,0.06131745]
[1766158305027,0.05209786,125.35,125.29,20.99]
[1766158305628,0.00209786,125.35,125.29,20.99]
[1766158305828,0.00209786,125.35,125.29,132.778]
[1766158306017,0.00209786,125.35,125.28,111.797]
[1766158306018,0.00209786,125.35,125.3,20.99]
[1766158306626,0.00209786,125.35,125.31,0.06013611]
[1766158306825,0.00209786,125.35,125.27,20.99]
[1766158307028,117.721,125.36,125.27,20.99]
[1766158307327,13.173,125.36,125.27,20.99]
[1766158307527,7.183,125.36,125.27,20.99]
[1766158307826,0.05419212,125.33,125.3,0.05175618]
[1766158308032,0.05419212,125.33,125.29,20.99]
[1766158308033,0.00419212,125.33,125.29,20.99]
[1766158308933,0.00419212,125.33,125.3,0.05796447]
[1766158309633,6.0,125.39,125.3,21.04796447]
[1766158309833,6.0,125.39,125.3,20.99]
[1766158310735,0.06097503,125.36,125.33,0.05691242]
[1766158311335,0.06097503,125.36,125.3,20.99]
[1766158311536,7.24367503,125.36,125.3,20.99]
[1766158312228,0.06097503,125.36,125.3,20.99]
[1766158312425,0.06097503,125.36,125.32,0.05127468]
[1766158313736,6.08,125.42,125.32,21.04127468]
[1766158313940,6.08,125.42,125.32,20.99]
[1766158314440,7.1806,125.4,125.32,20.99]
[1766158314935,0.05884219,125.37,125.35,0.05721867]
[1766158315439,16.75858545,125.42,125.35,0.05721867]
[1766158316028,128.43718545,125.42,125.35,0.05721867]
[1766158316228,128.43688545,125.42,125.35,0.05721867]
[1766158316424,0.05819192,125.4,125.35,0.05721867]
[1766158316834,0.05819192,125.4,125.35,21.04721867]
[1766158317031,54.0983,125.44,125.35,28.23011867]
[1766158317337,46.92,125.44,125.35,20.99]
[1766158318129,164.86,125.44,125.38,0.05590626]
[1766158318336,46.92,125.44,125.38,0.05590626]
[1766158318738,117.9199,125.46,125.38,0.05590626]
[1766158319035,117.9199,125.46,125.41,0.05399586]
[1766158319238,117.9199,125.46,125.41,0.00399586]
[1766158319439,7.1787,125.43,125.35,20.99]
[1766158320237,7.1778,125.45,125.35,20.99]
[1766158320547,6.3,125.49,125.39,21.0440029]
[1766158320733,7.1742,125.51,125.41,20.99]
[1766158320934,6.3,125.52,125.41,20.99]
[1766158321133,6.31,125.51,125.41,20.99]
[1766158321534,6.31,125.51,125.45,0.05639518]
[1766158321738,0.05169399,125.49,125.41,20.99]
[1766158321938,6.31,125.51,125.42,20.99]
[1766158322140,175.46376623,125.53,125.42,20.99]
[1766158322344,111.565,125.55,125.43,132.6536]
[1766158322345,6.31,125.55,125.43,132.6536]
[1766158322641,0.06123188,125.5,125.48,0.0522042]
[1766158322844,0.06123188,125.5,125.42,68.03]
[1766158323049,6.31,125.52,125.43,20.99]
[1766158323446,7.1742,125.51,125.43,20.99]
[1766158323642,6.31,125.52,125.43,20.99]
[1766158323852,0.0020252,125.49,125.46,21.0444913]
[1766158324140,6.27,125.55,125.46,20.99]
[1766158324348,13.4419,125.55,125.46,20.99]
[1766158324846,0.05061689,125.52,125.49,0.05608582]
[1766158325041,0.05061689,125.52,125.43,74.7881]
[1766158325346,6.27,125.55,125.45,132.2349]
[1766158325544,16.91376623,125.58,125.48,7.1754]
[1766158325852,16.91376623,125.58,125.48,20.59]
[1766158326050,0.05827553,125.54,125.52,0.05700151]
[1766158326546,53.18,125.61,125.52,0.05700151]
[1766158326744,53.18,125.61,125.5,132.1912]
[1766158327047,53.18,125.61,125.51,20.59]
[1766158327246,6.31,125.64,125.54,20.59]
[1766158327545,6.31,125.64,125.54,27.7618]
[1766158327740,6.31,125.64,125.54,20.59]
[1766158328140,13.477,125.64,125.54,20.59]
[1766158328341,6.36,125.63,125.58,0.05733226]
[1766158328747,57.55376623,125.65,125.58,0.05733226]
[1766158329050,46.88,125.65,125.58,0.05733226]
[1766158329241,6.37,125.64,125.58,0.05733226]
[1766158330245,57.55376623,125.65,125.58,0.05733226]
[1766158330448,6.37,125.67,125.58,20.64733226]
[1766158330639,6.37,125.67,125.58,20.59]
[1766158330841,6.37,125.67,125.61,0.05312904]
[1766158332053,17.04376623,125.66,125.56,47.0]
[1766158332246,6.37,125.66,125.56,47.0]
[1766158332449,10.67376623,125.65,125.56,47.0]